[Event "January 9 Late 2024"]
[Site "https://www.chess.com"]
[Date "2024.01.09"]
[Round "5"]
[White "Schnaider, Ilan"]
[Black "Spichkin, Alexander"]
[Result "1-0"]
[Board "146"]
[TimeControl "180+1"]
[WhiteFideId "169013"]
[BlackFideId "4144074"]
[WhiteElo "2715"]
[BlackElo "2466"]
[WhiteTeam "ARG"]
[BlackTeam "RUS"]
[WhiteClock "0:00:07"]
[BlackClock "0:00:54"]

1. e4 {[%clk 0:03:00]}  e5 {[%clk 0:02:59]} 2. Nf3 {[%clk 0:03:00]}  d5 {[%clk 0:02:59]} 3. exd5 {[%clk 0:02:58]}  e4 {[%clk 0:02:56]} 4. Nd4 {[%clk 0:02:58]}  Qxd5 {[%clk 0:02:50]} 5. Nb3 {[%clk 0:02:58]}  Nf6 {[%clk 0:02:50]} 6. Nc3 {[%clk 0:02:59]}  Qe5 {[%clk 0:02:50]} 7. Be2 {[%clk 0:02:48]}  Nc6 {[%clk 0:02:48]} 8. d4 {[%clk 0:02:41]}  exd3 {[%clk 0:02:48]} 9. cxd3 {[%clk 0:02:39]}  Be6 {[%clk 0:02:37]} 10. Be3 {[%clk 0:02:32]}  O-O-O {[%clk 0:02:37]} 11. d4 {[%clk 0:02:33]}  Qf5 {[%clk 0:02:32]} 12. O-O {[%clk 0:02:04]}  h5 {[%clk 0:02:16]} 13. Bd3 {[%clk 0:02:00]}  Qg4 {[%clk 0:02:15]} 14. f3 {[%clk 0:01:54]}  Qh4 {[%clk 0:02:14]} 15. Qd2 {[%clk 0:01:38]}  Bd6 {[%clk 0:01:58]} 16. g3 {[%clk 0:01:02]}  Qh3 {[%clk 0:01:57]} 17. Ne4 {[%clk 0:00:51]}  Nxe4 {[%clk 0:01:50]} 18. fxe4 {[%clk 0:00:31]}  h4 {[%clk 0:01:48]} 19. d5 {[%clk 0:00:19]}  Bb4 {[%clk 0:01:47]} 20. Qg2 {[%clk 0:00:17]}  hxg3 {[%clk 0:01:36]} 21. Qxg3 {[%clk 0:00:14]}  Qxg3+ {[%clk 0:01:29]} 22. hxg3 {[%clk 0:00:15]}  Bh3 {[%clk 0:01:30]} 23. Rf2 {[%clk 0:00:07]}  Ne5 {[%clk 0:01:30]} 24. Be2 {[%clk 0:00:08]}  f6 {[%clk 0:01:25]} 25. Rc1 {[%clk 0:00:07]}  Bg4 {[%clk 0:01:19]} 26. Nd4 {[%clk 0:00:06]}  Ba5 {[%clk 0:01:15]} 27. Nb5 {[%clk 0:00:02]}  Bxe2 {[%clk 0:01:12]} 28. Rxe2 {[%clk 0:00:03]}  a6 {[%clk 0:01:07]} 29. Nd4 {[%clk 0:00:02]}  Ng4 {[%clk 0:01:05]} 30. Ne6 {[%clk 0:00:02]}  Rd7 {[%clk 0:01:06]} 31. Bd4 {[%clk 0:00:01]}  Re8 {[%clk 0:01:04]} 32. Kg2 {[%clk 0:00:01]}  Rxe6 {[%clk 0:01:02]} 33. dxe6 {[%clk 0:00:02]}  Rxd4 {[%clk 0:01:02]} 34. Rh1 {[%clk 0:00:03]}  Kd8 {[%clk 0:01:00]} 35. Rh7 {[%clk 0:00:03]}  Ke7 {[%clk 0:01:00]} 36. Rxg7+ {[%clk 0:00:03]}  Kxe6 {[%clk 0:01:01]} 37. Rxg4 {[%clk 0:00:04]}  c5 {[%clk 0:01:00]} 38. Rg7 {[%clk 0:00:04]}  b5 {[%clk 0:01:00]} 39. Ra7 {[%clk 0:00:04]}  c4 {[%clk 0:00:55]} 40. Rxa6+ {[%clk 0:00:04]}  Ke5 {[%clk 0:00:54]} 41. Rxa5 {[%clk 0:00:05]}  Rd2 {[%clk 0:00:54]} 42. Rxd2 {[%clk 0:00:05]}  Kxe4 {[%clk 0:00:55]} 43. Rxb5 {[%clk 0:00:05]}  Ke3 {[%clk 0:00:55]} 44. Rc2 {[%clk 0:00:05]}  Kd3 {[%clk 0:00:55]} 45. Rc3+ {[%clk 0:00:05]}  Kd4 {[%clk 0:00:55]} 46. Rb4 {[%clk 0:00:06]}  f5 {[%clk 0:00:55]} 47. Rbxc4+ {[%clk 0:00:07]}  Kd5 {[%clk 0:00:54]} 48. Rf4 {[%clk 0:00:07]} 1-0

[Event "January 9 Late 2024"]
[Site "https://www.chess.com"]
[Date "2024.01.09"]
[Round "5"]
[White "Leiva, Gianmarco"]
[Black "Kazmaier, Daniel"]
[Result "0-1"]
[Board "147"]
[TimeControl "180+1"]
[WhiteFideId "3804399"]
[BlackFideId "2606089"]
[WhiteElo "2686"]
[BlackElo "2452"]
[WhiteTeam "PER"]
[BlackTeam "CAN"]
[WhiteClock "0:00:09"]
[BlackClock "0:00:17"]

1. d4 {[%clk 0:02:57]}  f5 {[%clk 0:02:59]} 2. e4 {[%clk 0:02:55]}  fxe4 {[%clk 0:02:59]} 3. Nc3 {[%clk 0:02:55]}  Nf6 {[%clk 0:02:59]} 4. f3 {[%clk 0:02:56]}  e3 {[%clk 0:02:59]} 5. Bxe3 {[%clk 0:02:54]}  e6 {[%clk 0:02:59]} 6. Bd3 {[%clk 0:02:52]}  Nc6 {[%clk 0:02:56]} 7. a3 {[%clk 0:02:49]}  d5 {[%clk 0:02:31]} 8. f4 {[%clk 0:02:40]}  Bd6 {[%clk 0:02:20]} 9. Qf3 {[%clk 0:02:33]}  O-O {[%clk 0:02:12]} 10. Nge2 {[%clk 0:02:29]}  Ne7 {[%clk 0:01:34]} 11. g4 {[%clk 0:02:20]}  Qe8 {[%clk 0:01:06]} 12. g5 {[%clk 0:02:13]}  Qh5 {[%clk 0:01:03]} 13. O-O {[%clk 0:02:00]}  Qxf3 {[%clk 0:00:54]} 14. Rxf3 {[%clk 0:02:00]}  Nh5 {[%clk 0:00:51]} 15. Ng3 {[%clk 0:01:52]}  Nxf4 {[%clk 0:00:44]} 16. Raf1 {[%clk 0:01:45]}  Neg6 {[%clk 0:00:43]} 17. Bxg6 {[%clk 0:01:25]}  Nxg6 {[%clk 0:00:44]} 18. Nb5 {[%clk 0:01:18]}  Bd7 {[%clk 0:00:43]} 19. Nxd6 {[%clk 0:01:18]}  cxd6 {[%clk 0:00:44]} 20. Rxf8+ {[%clk 0:01:14]}  Rxf8 {[%clk 0:00:43]} 21. Rxf8+ {[%clk 0:01:15]}  Kxf8 {[%clk 0:00:43]} 22. Kf2 {[%clk 0:01:14]}  a6 {[%clk 0:00:38]} 23. Kf3 {[%clk 0:01:12]}  e5 {[%clk 0:00:39]} 24. Ne2 {[%clk 0:01:07]}  Nh4+ {[%clk 0:00:37]} 25. Kf2 {[%clk 0:01:03]}  Bf5 {[%clk 0:00:34]} 26. Kg3 {[%clk 0:00:43]}  Ng6 {[%clk 0:00:33]} 27. c3 {[%clk 0:00:44]}  Ke7 {[%clk 0:00:33]} 28. h4 {[%clk 0:00:44]}  Ke6 {[%clk 0:00:32]} 29. h5 {[%clk 0:00:45]}  Ne7 {[%clk 0:00:33]} 30. Ng1 {[%clk 0:00:34]}  Bc2 {[%clk 0:00:31]} 31. Nh3 {[%clk 0:00:31]}  Nf5+ {[%clk 0:00:30]} 32. Kf2 {[%clk 0:00:32]}  Bd1 {[%clk 0:00:30]} 33. h6 {[%clk 0:00:31]}  g6 {[%clk 0:00:26]} 34. Ng1 {[%clk 0:00:25]}  Nxe3 {[%clk 0:00:25]} 35. Kxe3 {[%clk 0:00:26]}  Kf5 {[%clk 0:00:26]} 36. Nh3 {[%clk 0:00:21]}  Bg4 {[%clk 0:00:25]} 37. Nf2 {[%clk 0:00:22]}  Kxg5 {[%clk 0:00:20]} 38. Nd3 {[%clk 0:00:22]}  exd4+ {[%clk 0:00:19]} 39. Kxd4 {[%clk 0:00:23]}  Bf3 {[%clk 0:00:18]} 40. Ke3 {[%clk 0:00:18]}  Be4 {[%clk 0:00:18]} 41. Nf4 {[%clk 0:00:19]}  Kxh6 {[%clk 0:00:18]} 42. Ne6 {[%clk 0:00:20]}  g5 {[%clk 0:00:18]} 43. a4 {[%clk 0:00:20]}  Kh5 {[%clk 0:00:17]} 44. a5 {[%clk 0:00:21]}  Kg4 {[%clk 0:00:17]} 45. Nd8 {[%clk 0:00:20]}  h5 {[%clk 0:00:17]} 46. Nxb7 {[%clk 0:00:21]}  h4 {[%clk 0:00:17]} 47. Nxd6 {[%clk 0:00:22]}  h3 {[%clk 0:00:18]} 48. Nxe4 {[%clk 0:00:11]}  dxe4 {[%clk 0:00:17]} 49. c4 {[%clk 0:00:09]}  h2 {[%clk 0:00:17]} 0-1

[Event "January 9 Late 2024"]
[Site "https://www.chess.com"]
[Date "2024.01.09"]
[Round "5"]
[White "Krishnan, Varun"]
[Black "Hejazipour, Mitra"]
[Result "0-1"]
[Board "148"]
[TimeControl "180+1"]
[WhiteFideId "5054508"]
[BlackFideId "12505951"]
[WhiteElo "2656"]
[BlackElo "2445"]
[WhiteTeam "USA"]
[BlackTeam "FRA"]
[WhiteClock "0:00:13"]
[BlackClock "0:00:18"]

1. d4 {[%clk 0:03:00]}  Nf6 {[%clk 0:02:55]} 2. c4 {[%clk 0:03:00]}  e6 {[%clk 0:02:54]} 3. Nf3 {[%clk 0:02:56]}  b6 {[%clk 0:02:49]} 4. a3 {[%clk 0:02:55]}  Bb7 {[%clk 0:02:47]} 5. Nc3 {[%clk 0:02:56]}  d5 {[%clk 0:02:46]} 6. cxd5 {[%clk 0:02:57]}  Nxd5 {[%clk 0:02:46]} 7. Qc2 {[%clk 0:02:56]}  Be7 {[%clk 0:02:46]} 8. e4 {[%clk 0:02:55]}  Nxc3 {[%clk 0:02:45]} 9. bxc3 {[%clk 0:02:56]}  O-O {[%clk 0:02:44]} 10. Bd3 {[%clk 0:02:51]}  c5 {[%clk 0:02:44]} 11. O-O {[%clk 0:02:46]}  Qc7 {[%clk 0:02:43]} 12. Qe2 {[%clk 0:02:35]}  cxd4 {[%clk 0:02:34]} 13. cxd4 {[%clk 0:02:34]}  Nd7 {[%clk 0:02:34]} 14. Bb2 {[%clk 0:02:33]}  Nf6 {[%clk 0:02:32]} 15. Rac1 {[%clk 0:02:30]}  Qd8 {[%clk 0:02:17]} 16. Ne5 {[%clk 0:02:06]}  Rc8 {[%clk 0:02:13]} 17. Qf3 {[%clk 0:01:48]}  b5 {[%clk 0:02:05]} 18. Ng4 {[%clk 0:01:40]}  Nxg4 {[%clk 0:01:44]} 19. Qxg4 {[%clk 0:01:39]}  e5 {[%clk 0:01:40]} 20. d5 {[%clk 0:01:32]}  Bd6 {[%clk 0:01:38]} 21. f4 {[%clk 0:01:24]}  Qb6+ {[%clk 0:01:35]} 22. Kh1 {[%clk 0:01:23]}  Rxc1 {[%clk 0:01:34]} 23. Rxc1 {[%clk 0:01:19]}  Qf2 {[%clk 0:01:09]} 24. Bxe5 {[%clk 0:01:12]}  Bxe5 {[%clk 0:01:07]} 25. fxe5 {[%clk 0:01:13]}  Qd4 {[%clk 0:00:57]} 26. Qg3 {[%clk 0:01:08]}  Qb2 {[%clk 0:00:53]} 27. Rf1 {[%clk 0:00:49]}  Qxa3 {[%clk 0:00:52]} 28. h4 {[%clk 0:00:46]}  b4 {[%clk 0:00:50]} 29. e6 {[%clk 0:00:26]}  b3 {[%clk 0:00:38]} 30. d6 {[%clk 0:00:12]}  b2 {[%clk 0:00:32]} 31. e7 {[%clk 0:00:09]}  Ra8 {[%clk 0:00:30]} 32. Qf4 {[%clk 0:00:07]}  f6 {[%clk 0:00:25]} 33. Bc4+ {[%clk 0:00:06]}  Kh8 {[%clk 0:00:24]} 34. e5 {[%clk 0:00:06]}  Qh3+ {[%clk 0:00:21]} 35. Qh2 {[%clk 0:00:06]}  Bxg2+ {[%clk 0:00:16]} 36. Kg1 {[%clk 0:00:06]}  Qxh2+ {[%clk 0:00:16]} 37. Kxh2 {[%clk 0:00:05]}  Bxf1 {[%clk 0:00:16]} 38. d7 {[%clk 0:00:05]}  Rg8 {[%clk 0:00:13]} 39. Ba2 {[%clk 0:00:02]}  Bc4 {[%clk 0:00:10]} 40. d8=Q {[%clk 0:00:02]}  Bxa2 {[%clk 0:00:10]} 41. e8=Q {[%clk 0:00:02]}  b1=Q {[%clk 0:00:10]} 42. Qxg8+ {[%clk 0:00:02]}  Bxg8 {[%clk 0:00:09]} 43. exf6 {[%clk 0:00:03]}  Qc2+ {[%clk 0:00:09]} 44. Kg1 {[%clk 0:00:03]}  Qc1+ {[%clk 0:00:09]} 45. Kh2 {[%clk 0:00:04]}  Qf4+ {[%clk 0:00:09]} 46. Kg1 {[%clk 0:00:04]}  Qxf6 {[%clk 0:00:09]} 47. Qb8 {[%clk 0:00:03]}  Qb6+ {[%clk 0:00:09]} 48. Qxb6 {[%clk 0:00:02]}  axb6 {[%clk 0:00:10]} 49. Kf2 {[%clk 0:00:02]}  b5 {[%clk 0:00:11]} 50. Ke3 {[%clk 0:00:03]}  b4 {[%clk 0:00:12]} 51. Kd4 {[%clk 0:00:04]}  b3 {[%clk 0:00:13]} 52. Kc3 {[%clk 0:00:04]}  Be6 {[%clk 0:00:13]} 53. Kb2 {[%clk 0:00:05]}  Kg8 {[%clk 0:00:14]} 54. h5 {[%clk 0:00:06]}  Kf7 {[%clk 0:00:14]} 55. h6 {[%clk 0:00:07]}  gxh6 {[%clk 0:00:14]} 56. Kc3 {[%clk 0:00:08]}  h5 {[%clk 0:00:15]} 57. Kb2 {[%clk 0:00:09]}  h4 {[%clk 0:00:16]} 58. Kc3 {[%clk 0:00:10]}  h3 {[%clk 0:00:16]} 59. Kb2 {[%clk 0:00:11]}  h2 {[%clk 0:00:17]} 60. Ka3 {[%clk 0:00:11]}  h1=Q {[%clk 0:00:18]} 61. Kb2 {[%clk 0:00:12]}  Qg2+ {[%clk 0:00:18]} 62. Ka1 {[%clk 0:00:13]}  Qa2# {[%clk 0:00:18]} 0-1

[Event "January 9 Late 2024"]
[Site "https://www.chess.com"]
[Date "2024.01.09"]
[Round "5"]
[White "Gomes, Luiz Alexandre de Souza"]
[Black "Vlassov, Nikolai"]
[Result "0-1"]
[Board "149"]
[TimeControl "180+1"]
[WhiteFideId "2102790"]
[BlackFideId "4103360"]
[WhiteElo "2439"]
[BlackElo "2639"]
[WhiteTeam "BRA"]
[BlackTeam "FID"]
[WhiteClock "0:01:51"]
[BlackClock "0:01:54"]

1. e4 {[%clk 0:03:00]}  Nc6 {[%clk 0:02:59]} 2. Nf3 {[%clk 0:03:00]}  d5 {[%clk 0:02:59]} 3. exd5 {[%clk 0:03:00]}  Qxd5 {[%clk 0:02:59]} 4. Nc3 {[%clk 0:03:00]}  Qa5 {[%clk 0:02:59]} 5. d3 {[%clk 0:02:57]}  Bg4 {[%clk 0:02:59]} 6. Bd2 {[%clk 0:02:57]}  O-O-O {[%clk 0:02:59]} 7. h3 {[%clk 0:02:55]}  Bxf3 {[%clk 0:02:55]} 8. Qxf3 {[%clk 0:02:55]}  Nd4 {[%clk 0:02:56]} 9. Qd1 {[%clk 0:02:55]}  Nf6 {[%clk 0:02:53]} 10. Be2 {[%clk 0:02:55]}  e6 {[%clk 0:02:47]} 11. O-O {[%clk 0:02:54]}  Bd6 {[%clk 0:02:43]} 12. Re1 {[%clk 0:02:55]}  Qe5 {[%clk 0:02:39]} 13. g3 {[%clk 0:02:54]}  h5 {[%clk 0:02:34]} 14. Bf4 {[%clk 0:02:52]}  Qf5 {[%clk 0:02:33]} 15. Bxd6 {[%clk 0:02:51]}  Rxd6 {[%clk 0:02:32]} 16. a4 {[%clk 0:02:28]}  Qxh3 {[%clk 0:02:27]} 17. Bf3 {[%clk 0:02:26]}  Ng4 {[%clk 0:02:21]} 18. Bg2 {[%clk 0:02:13]}  Qh2+ {[%clk 0:02:20]} 19. Kf1 {[%clk 0:02:13]}  f5 {[%clk 0:02:12]} 20. Ne2 {[%clk 0:02:00]}  Nxe2 {[%clk 0:02:05]} 21. Qxe2 {[%clk 0:01:59]}  h4 {[%clk 0:02:05]} 22. gxh4 {[%clk 0:01:56]}  Qxh4 {[%clk 0:01:55]} 23. Qf3 {[%clk 0:01:51]}  Nh2+ {[%clk 0:01:54]} 0-1

[Event "January 9 Late 2024"]
[Site "https://www.chess.com"]
[Date "2024.01.09"]
[Round "5"]
[White "Gurevich, Dmitry"]
[Black "Bonin, Jay"]
[Result "1-0"]
[Board "152"]
[TimeControl "180+1"]
[WhiteFideId "2000407"]
[BlackFideId "2000644"]
[WhiteElo "2529"]
[BlackElo "2325"]
[WhiteTeam "USA"]
[BlackTeam "USA"]
[WhiteClock "0:00:36"]
[BlackClock "0:00:52"]

1. d4 {[%clk 0:03:00]}  Nf6 {[%clk 0:02:57]} 2. c4 {[%clk 0:03:00]}  g6 {[%clk 0:02:57]} 3. Nc3 {[%clk 0:02:59]}  Bg7 {[%clk 0:02:55]} 4. e4 {[%clk 0:02:59]}  d6 {[%clk 0:02:53]} 5. Nf3 {[%clk 0:02:59]}  O-O {[%clk 0:02:52]} 6. Be2 {[%clk 0:02:59]}  e5 {[%clk 0:02:52]} 7. O-O {[%clk 0:02:58]}  exd4 {[%clk 0:02:51]} 8. Nxd4 {[%clk 0:02:58]}  Re8 {[%clk 0:02:51]} 9. f3 {[%clk 0:02:58]}  Nc6 {[%clk 0:02:49]} 10. Be3 {[%clk 0:02:57]}  Nh5 {[%clk 0:02:49]} 11. Qd2 {[%clk 0:02:55]}  Nf4 {[%clk 0:02:48]} 12. Rad1 {[%clk 0:02:52]}  Nxd4 {[%clk 0:02:42]} 13. Bxd4 {[%clk 0:02:50]}  Bxd4+ {[%clk 0:02:42]} 14. Qxd4 {[%clk 0:02:50]}  Nxe2+ {[%clk 0:02:42]} 15. Nxe2 {[%clk 0:02:49]}  b6 {[%clk 0:02:42]} 16. Nc3 {[%clk 0:02:44]}  Bb7 {[%clk 0:02:41]} 17. Nd5 {[%clk 0:02:44]}  Bxd5 {[%clk 0:02:40]} 18. cxd5 {[%clk 0:02:45]}  Qg5 {[%clk 0:02:36]} 19. Rc1 {[%clk 0:02:34]}  Re7 {[%clk 0:02:34]} 20. Rc3 {[%clk 0:02:32]}  Rae8 {[%clk 0:02:31]} 21. Rfc1 {[%clk 0:02:28]}  f5 {[%clk 0:02:30]} 22. Rxc7 {[%clk 0:02:22]}  fxe4 {[%clk 0:02:29]} 23. fxe4 {[%clk 0:02:09]}  Qf4 {[%clk 0:02:28]} 24. g3 {[%clk 0:01:55]}  Qxe4 {[%clk 0:02:27]} 25. Qxe4 {[%clk 0:01:50]}  Rxe4 {[%clk 0:02:26]} 26. Rxa7 {[%clk 0:01:46]}  Re1+ {[%clk 0:02:12]} 27. Rxe1 {[%clk 0:01:44]}  Rxe1+ {[%clk 0:02:11]} 28. Kf2 {[%clk 0:01:42]}  Rd1 {[%clk 0:02:11]} 29. Ke3 {[%clk 0:01:33]}  Rxd5 {[%clk 0:02:09]} 30. a4 {[%clk 0:01:29]}  Re5+ {[%clk 0:01:51]} 31. Kd3 {[%clk 0:01:27]}  Rd5+ {[%clk 0:01:48]} 32. Kc3 {[%clk 0:01:25]}  Rc5+ {[%clk 0:01:46]} 33. Kb3 {[%clk 0:01:24]}  d5 {[%clk 0:01:40]} 34. Ra6 {[%clk 0:01:21]}  b5 {[%clk 0:01:35]} 35. a5 {[%clk 0:01:15]}  d4 {[%clk 0:01:33]} 36. Rd6 {[%clk 0:01:12]}  Rc4 {[%clk 0:01:32]} 37. Rd5 {[%clk 0:01:04]}  Ra4 {[%clk 0:01:21]} 38. Rxb5 {[%clk 0:01:03]}  Ra1 {[%clk 0:01:21]} 39. Rd5 {[%clk 0:00:58]}  Kg7 {[%clk 0:01:13]} 40. Kb4 {[%clk 0:00:56]}  Rd1 {[%clk 0:01:10]} 41. a6 {[%clk 0:00:53]}  Ra1 {[%clk 0:01:07]} 42. Kb5 {[%clk 0:00:43]}  Ra2 {[%clk 0:01:02]} 43. b4 {[%clk 0:00:41]}  Rxh2 {[%clk 0:01:00]} 44. a7 {[%clk 0:00:38]}  Ra2 {[%clk 0:00:59]} 45. Kb6 {[%clk 0:00:38]}  h5 {[%clk 0:00:52]} 46. Ra5 {[%clk 0:00:36]} 1-0

[Event "January 9 Late 2024"]
[Site "https://www.chess.com"]
[Date "2024.01.09"]
[Round "5"]
[White "Szente Varga, Fruzsina"]
[Black "Gubajdullin, Alexei"]
[Result "0-1"]
[Board "158"]
[TimeControl "180+1"]
[WhiteFideId "712264"]
[BlackFideId "4141202"]
[WhiteElo "2301"]
[BlackElo "2622"]
[WhiteTeam "HUN"]
[BlackTeam "RUS"]
[WhiteClock "0:00:12"]
[BlackClock "0:00:41"]

1. e4 {[%clk 0:03:00]}  e5 {[%clk 0:02:58]} 2. Nf3 {[%clk 0:02:58]}  Nf6 {[%clk 0:02:58]} 3. Nc3 {[%clk 0:02:57]}  Bb4 {[%clk 0:02:58]} 4. Bc4 {[%clk 0:02:46]}  O-O {[%clk 0:02:57]} 5. O-O {[%clk 0:02:45]}  Bxc3 {[%clk 0:02:55]} 6. dxc3 {[%clk 0:02:43]}  d6 {[%clk 0:02:53]} 7. Bg5 {[%clk 0:02:42]}  h6 {[%clk 0:02:50]} 8. Bxf6 {[%clk 0:02:39]}  Qxf6 {[%clk 0:02:49]} 9. Qd3 {[%clk 0:02:34]}  Nd7 {[%clk 0:02:48]} 10. b4 {[%clk 0:02:33]}  Nb6 {[%clk 0:02:42]} 11. Bb3 {[%clk 0:02:33]}  a5 {[%clk 0:02:42]} 12. a4 {[%clk 0:02:33]}  Be6 {[%clk 0:02:40]} 13. Nd2 {[%clk 0:02:15]}  Rfd8 {[%clk 0:02:36]} 14. Qg3 {[%clk 0:01:56]}  d5 {[%clk 0:02:15]} 15. f4 {[%clk 0:01:44]}  exf4 {[%clk 0:02:07]} 16. Rxf4 {[%clk 0:01:44]}  Qg5 {[%clk 0:02:07]} 17. Qxg5 {[%clk 0:01:34]}  hxg5 {[%clk 0:02:06]} 18. Rf2 {[%clk 0:01:35]}  d4 {[%clk 0:01:58]} 19. Bxe6 {[%clk 0:01:28]}  fxe6 {[%clk 0:01:57]} 20. cxd4 {[%clk 0:01:29]}  Rxd4 {[%clk 0:01:56]} 21. c3 {[%clk 0:01:28]}  Rd3 {[%clk 0:01:55]} 22. bxa5 {[%clk 0:01:25]}  Rxa5 {[%clk 0:01:54]} 23. Nb3 {[%clk 0:01:22]}  Re5 {[%clk 0:01:50]} 24. a5 {[%clk 0:01:19]}  Nc4 {[%clk 0:01:49]} 25. Ra4 {[%clk 0:01:15]}  Rxc3 {[%clk 0:01:48]} 26. Nd4 {[%clk 0:01:08]}  Rxe4 {[%clk 0:01:47]} 27. Ne2 {[%clk 0:00:54]}  Rc2 {[%clk 0:01:36]} 28. Ng3 {[%clk 0:00:53]}  Rc1+ {[%clk 0:01:33]} 29. Rf1 {[%clk 0:00:49]}  Rxf1+ {[%clk 0:01:32]} 30. Nxf1 {[%clk 0:00:49]}  Nd6 {[%clk 0:01:22]} 31. Ra1 {[%clk 0:00:48]}  c5 {[%clk 0:01:12]} 32. Rb1 {[%clk 0:00:44]}  c4 {[%clk 0:01:10]} 33. Rb6 {[%clk 0:00:41]}  Rd4 {[%clk 0:01:09]} 34. Ne3 {[%clk 0:00:35]}  c3 {[%clk 0:01:08]} 35. Kf2 {[%clk 0:00:34]}  c2 {[%clk 0:01:06]} 36. Nxc2 {[%clk 0:00:32]}  Rd2+ {[%clk 0:01:04]} 37. Kf3 {[%clk 0:00:29]}  Nc4 {[%clk 0:01:02]} 38. Rxb7 {[%clk 0:00:20]}  Rxc2 {[%clk 0:01:01]} 39. a6 {[%clk 0:00:21]}  Ra2 {[%clk 0:01:00]} 40. a7 {[%clk 0:00:21]}  Kh7 {[%clk 0:00:59]} 41. g3 {[%clk 0:00:16]}  Ne5+ {[%clk 0:00:57]} 42. Ke4 {[%clk 0:00:17]}  Nc6 {[%clk 0:00:57]} 43. Rb6 {[%clk 0:00:15]}  Ra4+ {[%clk 0:00:56]} 44. Kf3 {[%clk 0:00:14]}  Ne5+ {[%clk 0:00:42]} 45. Ke3 {[%clk 0:00:12]}  Nc4+ {[%clk 0:00:41]} 0-1

[Event "January 9 Late 2024"]
[Site "https://www.chess.com"]
[Date "2024.01.10"]
[Round "5"]
[White "Nouali, Mohamed"]
[Black "Coelho, Ramyres Santana"]
[Result "1-0"]
[Board "162"]
[TimeControl "180+1"]
[WhiteFideId "5502462"]
[BlackFideId "2120690"]
[WhiteElo "2543"]
[BlackElo "2269"]
[WhiteTeam "TUN"]
[BlackTeam "BRA"]
[WhiteClock "0:01:59"]
[BlackClock "0:01:47"]

1. e4 {[%clk 0:02:55]}  c5 {[%clk 0:02:59]} 2. Nf3 {[%clk 0:02:30]}  d6 {[%clk 0:02:59]} 3. d4 {[%clk 0:02:31]}  cxd4 {[%clk 0:03:00]} 4. Nxd4 {[%clk 0:02:32]}  Nf6 {[%clk 0:03:00]} 5. Nc3 {[%clk 0:02:32]}  a6 {[%clk 0:03:01]} 6. Bc4 {[%clk 0:02:33]}  e6 {[%clk 0:03:02]} 7. Bb3 {[%clk 0:02:33]}  Be7 {[%clk 0:03:01]} 8. g4 {[%clk 0:02:34]}  O-O {[%clk 0:03:02]} 9. g5 {[%clk 0:02:34]}  Ne8 {[%clk 0:03:02]} 10. h4 {[%clk 0:02:33]}  Nc6 {[%clk 0:03:02]} 11. Be3 {[%clk 0:02:33]}  Nxd4 {[%clk 0:03:00]} 12. Qxd4 {[%clk 0:02:34]}  b5 {[%clk 0:02:58]} 13. f4 {[%clk 0:02:35]}  Bb7 {[%clk 0:02:57]} 14. O-O-O {[%clk 0:02:33]}  Qc7 {[%clk 0:02:55]} 15. h5 {[%clk 0:02:26]}  e5 {[%clk 0:02:48]} 16. Qd3 {[%clk 0:02:16]}  b4 {[%clk 0:02:42]} 17. Nd5 {[%clk 0:02:15]}  Bxd5 {[%clk 0:02:42]} 18. Bxd5 {[%clk 0:02:16]}  Rc8 {[%clk 0:02:42]} 19. g6 {[%clk 0:02:15]}  Nf6 {[%clk 0:02:33]} 20. h6 {[%clk 0:02:11]}  Nxd5 {[%clk 0:02:32]} 21. gxh7+ {[%clk 0:02:10]}  Kh8 {[%clk 0:02:17]} 22. hxg7+ {[%clk 0:02:11]}  Kxg7 {[%clk 0:02:17]} 23. h8=Q+ {[%clk 0:02:01]}  Rxh8 {[%clk 0:02:16]} 24. Rdg1+ {[%clk 0:02:01]}  Kf6 {[%clk 0:02:14]} 25. fxe5+ {[%clk 0:02:01]}  dxe5 {[%clk 0:02:10]} 26. Bg5+ {[%clk 0:02:01]}  Kg6 {[%clk 0:01:47]} 27. Bxe7# {[%clk 0:01:59]} 1-0

[Event "January 9 Late 2024"]
[Site "https://www.chess.com"]
[Date "2024.01.09"]
[Round "5"]
[White "Bazzano, Sebastian"]
[Black "Uz, Kagan"]
[Result "0-1"]
[Board "163"]
[TimeControl "180+1"]
[WhiteFideId "104566"]
[BlackFideId "30986680"]
[WhiteElo "2264"]
[BlackElo "2521"]
[WhiteTeam "ARG"]
[BlackTeam "USA"]
[WhiteClock "0:00:00"]
[BlackClock "0:00:06"]

1. d4 {[%clk 0:03:00]}  e5 {[%clk 0:02:59]} 2. dxe5 {[%clk 0:02:58]}  Nc6 {[%clk 0:02:58]} 3. Nf3 {[%clk 0:02:58]}  Qe7 {[%clk 0:02:58]} 4. g3 {[%clk 0:02:57]}  b6 {[%clk 0:02:53]} 5. Bg2 {[%clk 0:02:57]}  Bb7 {[%clk 0:02:54]} 6. O-O {[%clk 0:02:56]}  f6 {[%clk 0:02:49]} 7. exf6 {[%clk 0:02:53]}  Nxf6 {[%clk 0:02:50]} 8. Nc3 {[%clk 0:02:49]}  O-O-O {[%clk 0:02:44]} 9. Bg5 {[%clk 0:02:45]}  Kb8 {[%clk 0:02:35]} 10. Nd5 {[%clk 0:02:38]}  Qf7 {[%clk 0:02:33]} 11. c4 {[%clk 0:02:12]}  h6 {[%clk 0:02:15]} 12. Bf4 {[%clk 0:02:06]}  d6 {[%clk 0:02:10]} 13. Nd4 {[%clk 0:01:50]}  g5 {[%clk 0:02:05]} 14. Nxf6 {[%clk 0:01:40]}  Nxd4 {[%clk 0:01:24]} 15. Bxb7 {[%clk 0:01:31]}  Kxb7 {[%clk 0:01:17]} 16. Qxd4 {[%clk 0:01:25]}  gxf4 {[%clk 0:01:13]} 17. Qxf4 {[%clk 0:01:18]}  Bg7 {[%clk 0:01:07]} 18. Nd5 {[%clk 0:00:57]}  Qd7 {[%clk 0:00:55]} 19. Rab1 {[%clk 0:00:47]}  h5 {[%clk 0:00:47]} 20. h4 {[%clk 0:00:35]}  Be5 {[%clk 0:00:46]} 21. Qe4 {[%clk 0:00:34]}  c6 {[%clk 0:00:43]} 22. Nb4 {[%clk 0:00:28]}  Rhg8 {[%clk 0:00:32]} 23. Kh2 {[%clk 0:00:17]}  Rg4 {[%clk 0:00:30]} 24. f4 {[%clk 0:00:16]}  Rdg8 {[%clk 0:00:21]} 25. Rf3 {[%clk 0:00:16]}  Bf6 {[%clk 0:00:14]} 26. Rd1 {[%clk 0:00:12]}  Bxh4 {[%clk 0:00:11]} 27. Rg1 {[%clk 0:00:08]}  Bd8 {[%clk 0:00:05]} 28. Nd3 {[%clk 0:00:05]}  h4 {[%clk 0:00:04]} 29. Qe3 {[%clk 0:00:02]}  hxg3+ {[%clk 0:00:05]} 30. Rfxg3 {[%clk 0:00:02]}  Rh4+ {[%clk 0:00:05]} 31. Rh3 {[%clk 0:00:02]}  Rxh3+ {[%clk 0:00:04]} 32. Qxh3 {[%clk 0:00:02]}  Qxh3+ {[%clk 0:00:05]} 33. Kxh3 {[%clk 0:00:00]}  Rxg1 {[%clk 0:00:06]} 0-1